fUSD/lending_fUSD_20240611
["ID","MTS","AMOUNT","RATE_DAILY","PERIOD"]
[329164752,1718145042736,-500.0,0.00021916,2]
[329164755,1718145042750,-107.69191584,0.00021916,2]
[329164757,1718145042761,-326.68609521,0.00021916,2]
[329164759,1718145042772,-622.92938884,0.00021916,2]
[329164761,1718145042784,-284.70841544,0.00021917,2]
[329164763,1718145042794,-500.0,0.00021917,2]
[329164765,1718145042806,-500.0,0.00021917,2]
[329164767,1718145042816,-500.0,0.00021917,2]
[329164769,1718145042826,-156.98164232,0.00021917,2]
[329164771,1718145042841,-343.01835768,0.00021917,2]
[329164773,1718145042852,-500.0,0.00021917,2]
[329164775,1718145042862,-641.58967931,0.00021917,2]
[329164777,1718145042872,-500.0,0.00021917,2]
[329164779,1718145042883,-500.0,0.00021917,2]
[329164781,1718145042893,-500.0,0.00021917,2]
[329164783,1718145042906,-500.0,0.00021917,2]
[329164785,1718145042916,-137.25837091,0.00021917,2]
[329164788,1718145042930,-362.74162909,0.00021917,2]
[329164790,1718145042940,-213.27407346,0.00021917,2]
[329164814,1718145043176,-286.72592654,0.00021917,2]
[329164816,1718145043186,-500.0,0.00021917,2]
[329164819,1718145043196,-179.85065468,0.00021917,2]
[329164822,1718145043210,-320.14934532,0.00021917,2]
[329164825,1718145043220,-500.0,0.00021917,2]
[329164829,1718145043240,-500.0,0.00021917,2]
[329164832,1718145043254,-439.00335568,0.00021917,2]
[329164833,1718145043267,-60.99664432,0.00021917,2]
[329164835,1718145043281,-500.0,0.00021917,2]
[329164837,1718145043294,-500.0,0.00021917,2]
[329164839,1718145043304,-500.0,0.00021917,2]
[329164840,1718145043314,-500.0,0.00021917,2]
[329164842,1718145043323,-500.0,0.00021917,2]
[329164844,1718145043333,-500.0,0.00021917,2]
[329164846,1718145043348,-500.0,0.00021917,2]
[329164848,1718145043358,-500.0,0.00021917,2]
[329164850,1718145043368,-704.95,0.00021917,2]
[329164852,1718145043377,-500.0,0.00021917,2]
[329164853,1718145043387,-516.38,0.00021917,2]
[329164855,1718145043396,-500.0,0.00021917,2]
[329164857,1718145043406,-6.54871745,0.00021917,2]
[329164859,1718145043419,-493.45128255,0.00021917,2]
[329164861,1718145043429,-500.0,0.00021917,2]
[329164863,1718145043439,-500.0,0.00021917,2]
[329164864,1718145043449,-507.83350392,0.00021917,2]
[329164866,1718145043459,-500.0,0.00021917,2]
[329164868,1718145043470,-568.36486336,0.00021917,2]
[329164870,1718145043483,-590.78245372,0.00021917,2]
[329164873,1718145043493,-500.0,0.00021917,2]
[329164875,1718145043503,-500.0,0.00021917,2]
[329164878,1718145043513,-500.0,0.00021917,2]
[329164880,1718145043525,-500.0,0.00021917,2]
[329164884,1718145043543,-86.35415679,0.00021917,2]
[329164886,1718145043556,-418.54584321,0.00021917,2]
[329164888,1718145043569,-391.61643771,0.00021917,2]
[329164890,1718145043582,-108.38356229,0.00021917,2]
[329164892,1718145043592,-500.0,0.00021917,2]
[329164894,1718145043602,-544.61643771,0.00021917,2]
[329164896,1718145043623,-31.75113905,0.00021917,2]
[329164899,1718145043645,-500.0,0.00021917,2]
[329164900,1718145043661,-472.48060381,0.00021917,2]
[329164903,1718145043678,-27.51939619,0.00021917,2]
[329164905,1718145043693,-500.0,0.00021917,2]
[329164906,1718145043703,-500.0,0.00021917,2]
[329164908,1718145043713,-500.0,0.00021917,2]
[329164910,1718145043732,-500.0,0.00021917,2]
[329164912,1718145043749,-500.0,0.00021917,2]
[329164914,1718145043761,-583.97643712,0.00021917,2]
[329164916,1718145043771,-500.0,0.00021917,2]
[329164918,1718145043783,-500.0,0.00021917,2]
[329164920,1718145043799,-500.0,0.00021917,2]
[329164922,1718145043810,-500.0,0.00021917,2]
[329164924,1718145043832,-500.0,0.00021917,2]
[329164926,1718145043844,-500.0,0.00021917,2]
[329164928,1718145043866,-561.34,0.00021917,2]
[329164930,1718145043878,-1354.97,0.00021917,2]
[329164932,1718145043888,-500.0,0.00021917,2]
[329164934,1718145043903,-500.0,0.00021917,2]
[329164936,1718145043918,-500.0,0.00021917,2]
[329164938,1718145043930,-500.0,0.00021917,2]
[329164940,1718145043944,-1096.09,0.00021917,2]
[329164942,1718145043956,-516.51,0.00021917,2]
[329164944,1718145043968,-500.0,0.00021917,2]
[329164946,1718145043980,-500.0,0.00021917,2]
[329164948,1718145043992,-500.0,0.00021917,2]
[329164949,1718145044002,-500.0,0.00021917,2]
[329164952,1718145044015,-500.0,0.00021917,2]
[329164954,1718145044040,-500.0,0.00021917,2]
[329164956,1718145044051,-500.0,0.00021917,2]
[329164958,1718145044061,-500.0,0.00021917,2]
[329164960,1718145044072,-522.53,0.00021917,2]
[329164962,1718145044082,-794.44,0.00021917,2]
[329164963,1718145044092,-500.0,0.00021917,2]
[329164964,1718145044102,-650.31,0.00021917,2]
[329164966,1718145044112,-530.35,0.00021917,2]
[329164968,1718145044135,-500.0,0.00021917,2]
[329164970,1718145044148,-517.2,0.00021917,2]
[329164971,1718145044157,-438.78572134,0.00021917,2]
[329164973,1718145044168,-523.29,0.00021917,2]
[329164975,1718145044178,-606.07,0.00021917,2]
[329164977,1718145044188,-531.99988299,0.00021917,2]
[329164978,1718145044197,-500.0,0.00021917,2]
[329164980,1718145044208,-500.0,0.00021917,2]
[329164982,1718145044219,-500.0,0.00021917,2]
[329164984,1718145044229,-500.0,0.00021917,2]
[329164986,1718145044239,-500.0,0.00021917,2]
[329164987,1718145044249,-1223.29,0.00021917,2]
[329164989,1718145044260,-500.0,0.00021917,2]
[329164990,1718145044271,-500.0,0.00021917,2]
[329164992,1718145044281,-661.95,0.00021917,2]
[329164994,1718145044291,-502.36846176,0.00021917,2]
[329164996,1718145044302,-500.0,0.00021917,2]
[329164997,1718145044312,-500.0,0.00021917,2]
[329164999,1718145044322,-1576.35,0.00021917,2]
[329165001,1718145044332,-1022.79,0.00021917,2]
[329165003,1718145044344,-500.0,0.00021917,2]
[329165004,1718145044355,-500.0,0.00021917,2]
[329165006,1718145044366,-500.0,0.00021917,2]
[329165008,1718145044376,-500.0,0.00021917,2]
[329165010,1718145044385,-500.0,0.00021917,2]
[329165012,1718145044396,-500.0,0.00021917,2]
[329165013,1718145044407,-500.0,0.00021917,2]
[329165015,1718145044418,-500.0,0.00021917,2]
[329165017,1718145044428,-500.0,0.00021917,2]
[329165019,1718145044438,-500.0,0.00021917,2]
[329165021,1718145044448,-500.0,0.00021917,2]
[329165023,1718145044461,-1363.47,0.00021917,2]
[329165024,1718145044471,-1868.31,0.00021917,2]
[329165026,1718145044484,-648.86,0.00021917,2]
[329165028,1718145044494,-610.6,0.00021917,2]
[329165030,1718145044504,-757.78,0.00021917,2]
[329165032,1718145044514,-1839.71,0.00021917,2]
[329165033,1718145044525,-506.16721346,0.00021917,2]
[329165035,1718145044536,-1149.75,0.00021917,2]
[329165037,1718145044547,-552.48,0.00021917,2]
[329165039,1718145044560,-500.0,0.00021917,2]
[329165042,1718145044570,-517.77915366,0.00021917,2]
[329165044,1718145044580,-500.0,0.00021917,2]
[329165045,1718145044590,-500.0,0.00021917,2]
[329165048,1718145044603,-500.0,0.00021917,2]
[329165050,1718145044614,-500.0,0.00021917,2]
[329165052,1718145044625,-951.62,0.00021917,2]
[329165053,1718145044636,-500.0,0.00021917,2]
[329165055,1718145044646,-500.0,0.00021917,2]
[329165057,1718145044659,-590.89,0.00021917,2]
[329165059,1718145044670,-500.0,0.00021917,2]
[329165061,1718145044680,-500.0,0.00021917,2]
[329165063,1718145044691,-689.67,0.00021917,2]
[329165065,1718145044704,-500.0,0.00021917,2]
[329165067,1718145044714,-500.0,0.00021917,2]
[329165068,1718145044724,-500.0,0.00021917,2]
[329165070,1718145044734,-500.0,0.00021917,2]
[329165072,1718145044744,-500.0,0.00021917,2]
[329165074,1718145044755,-500.0,0.00021917,2]
[329165076,1718145044765,-500.0,0.00021917,2]
[329165078,1718145044775,-500.0,0.00021917,2]
[329165080,1718145044785,-591.76,0.00021917,2]
[329165081,1718145044795,-515.28386827,0.00021917,2]
[329165083,1718145044806,-500.0,0.00021917,2]
[329165085,1718145044816,-514.24404646,0.00021917,2]
[329165087,1718145044827,-500.0,0.00021917,2]
[329165089,1718145044837,-631.81,0.00021917,2]
[329165091,1718145044848,-500.0,0.00021917,2]
[329165093,1718145044858,-500.0,0.00021917,2]
[329165094,1718145044868,-500.0,0.00021917,2]
[329165096,1718145044878,-500.0,0.00021917,2]
[329165098,1718145044888,-500.0,0.00021917,2]
[329165100,1718145044898,-513.77,0.00021917,2]
[329165102,1718145044914,-527.4025217,0.00021917,2]
[329165104,1718145044924,-599.5,0.00021917,2]
[329165106,1718145044933,-157.91448212,0.00021917,2]
[329165107,1718145044943,-500.0,0.00021917,2]
[329165109,1718145044954,-694.47,0.00021917,2]
[329165111,1718145044965,-500.0,0.00021917,2]
[329165113,1718145044975,-500.0,0.00021917,2]
[329165115,1718145044985,-500.0,0.00021917,2]
[329165117,1718145044997,-500.0,0.00021917,2]
[329165119,1718145045008,-500.0,0.00021917,2]
[329165120,1718145045017,-500.0,0.00021917,2]
[329165122,1718145045027,-500.0,0.00021917,2]
[329165124,1718145045038,-540.46,0.00021917,2]
[329165126,1718145045048,-500.0,0.00021917,2]
[329165128,1718145045058,-892.43,0.00021917,2]
[329165130,1718145045068,-500.0,0.00021917,2]
[329165131,1718145045078,-500.0,0.00021917,2]
[329165133,1718145045088,-500.0,0.00021917,2]
[329165135,1718145045098,-500.0,0.00021917,2]
[329165137,1718145045110,-641.65,0.00021917,2]
[329165139,1718145045139,-500.0,0.00021917,2]
[329165141,1718145045155,-586.73,0.00021917,2]
[329165142,1718145045165,-609.47,0.00021917,2]
[329165144,1718145045176,-773.85,0.00021917,2]
[329165146,1718145045187,-175.02,0.00021917,2]
[329165148,1718145045197,-500.0,0.00021917,2]
[329165150,1718145045207,-500.0,0.00021917,2]
[329165152,1718145045217,-890.42,0.00021917,2]
[329165153,1718145045227,-500.0,0.00021917,2]
[329165155,1718145045238,-500.0,0.00021917,2]
[329165157,1718145045248,-500.0,0.00021917,2]
[329165159,1718145045259,-1620.03,0.00021917,2]
[329165161,1718145045270,-500.0,0.00021917,2]
[329165163,1718145045280,-539.87,0.00021917,2]
[329165165,1718145045290,-797.98,0.00021917,2]
[329165166,1718145045300,-500.0,0.00021917,2]
[329165168,1718145045311,-632.6,0.00021917,2]
[329165170,1718145045322,-500.0,0.00021917,2]
[329165172,1718145045332,-862.33,0.00021917,2]
[329165174,1718145045343,-711.32,0.00021917,2]
[329165176,1718145045353,-500.0,0.00021917,2]
[329165178,1718145045363,-500.0,0.00021917,2]
[329165180,1718145045374,-500.0,0.00021917,2]
[329165181,1718145045384,-500.0,0.00021917,2]
[329165182,1718145045394,-940.75,0.00021917,2]
[329165183,1718145045406,-727.09,0.00021917,2]
[329165184,1718145045416,-500.0,0.00021917,2]
[329165185,1718145045426,-510.32,0.00021917,2]
[329165186,1718145045437,-500.0,0.00021917,2]
[329165187,1718145045447,-500.0,0.00021917,2]
[329165188,1718145045458,-500.0,0.00021917,2]
[329165189,1718145045468,-509.83,0.00021917,2]
[329165190,1718145045479,-500.0,0.00021917,2]
[329165191,1718145045492,-500.0,0.00021917,2]
[329165192,1718145045503,-1097.25,0.00021917,2]
[329165193,1718145045514,-903.75,0.00021917,2]
[329165194,1718145045526,-500.0,0.00021917,2]
[329165195,1718145045536,-500.0,0.00021917,2]
[329165196,1718145045548,-500.0,0.00021917,2]
[329165197,1718145045559,-1028.02,0.00021917,2]
[329165199,1718145045570,-536.45,0.00021917,2]
[329165200,1718145045581,-500.0,0.00021917,2]
[329165202,1718145045591,-699.78,0.00021917,2]
[329165204,1718145045602,-516.71,0.00021917,2]
[329165206,1718145045612,-500.0,0.00021917,2]
[329165208,1718145045622,-500.0,0.00021917,2]
[329165210,1718145045633,-1017.46,0.00021917,2]
[329165212,1718145045643,-500.0,0.00021917,2]
[329165214,1718145045654,-500.0,0.00021917,2]
[329165228,1718145045789,-369.13969891,0.00021917,2]
[329165231,1718145045817,-500.0,0.00021917,2]
[329165233,1718145045828,-500.0,0.00021917,2]
[329165235,1718145045842,-500.0,0.00021917,2]
[329165237,1718145045862,-500.0,0.00021917,2]
[329165239,1718145045873,-500.0,0.00021917,2]
[329165242,1718145045883,-500.0,0.00021917,2]
[329165243,1718145045894,-1123.01,0.00021917,2]
[329165246,1718145045907,-500.0,0.00021917,2]
[329165247,1718145045918,-500.0,0.00021917,2]
[329165249,1718145045928,-500.0,0.00021917,2]
[329165250,1718145045939,-500.0,0.00021917,2]
[329165252,1718145045950,-1971.7,0.00021917,2]
[329165254,1718145045961,-790.87,0.00021917,2]
[329165256,1718145045974,-500.0,0.00021917,2]
[329165258,1718145045988,-500.0,0.00021917,2]
[329165260,1718145045998,-500.0,0.00021917,2]
[329165262,1718145046012,-500.0,0.00021917,2]
[329165264,1718145046032,-1371.34,0.00021917,2]
[329165265,1718145046043,-500.0,0.00021917,2]
[329165267,1718145046056,-777.88,0.00021917,2]
[329165269,1718145046066,-1796.87,0.00021917,2]
[329165271,1718145046078,-651.23,0.00021917,2]
[329165273,1718145046089,-500.0,0.00021917,2]
[329165275,1718145046104,-137.31264058,0.00021917,2]
[329165303,1718145046424,-441.0,0.00021895,2]
[329165305,1718145046436,-730.93735942,0.00021917,2]
[329165307,1718145046446,-28.06264058,0.00021917,2]
[329165344,1718145046851,-471.93735942,0.00021917,2]
[329165346,1718145046862,-500.0,0.00021917,2]
[329165348,1718145046872,-500.0,0.00021917,2]
[329165350,1718145046882,-613.29,0.00021917,2]
[329165352,1718145046893,-1131.87,0.00021917,2]
[329165354,1718145046904,-449.65764612,0.00021917,2]
[329165380,1718145047215,-50.34235388,0.00021917,2]
[329165382,1718145047226,-500.0,0.00021917,2]
[329165384,1718145047237,-835.64,0.00021917,2]
[329165386,1718145047247,-628.27,0.00021917,2]
[329165387,1718145047257,-66.42088485,0.00021917,2]
[329165390,1718145047270,-433.57911515,0.00021917,2]
[329165392,1718145047280,-378.35545021,0.00021917,2]
[329165394,1718145047290,-44.17655011,0.00021917,2]
[329165396,1718145047302,-455.82344989,0.00021917,2]
[329165398,1718145047313,-500.0,0.00021917,2]
[329165400,1718145047323,-416.87009798,0.00021917,2]
[329165402,1718145047342,-83.12990202,0.00021917,2]
[329165405,1718145047354,-232.64911521,0.00021917,2]
[329165407,1718145047368,-456.60891729,0.00021917,2]
[329165409,1718145047380,-968.85757747,0.00021917,2]
[329165510,1718145048597,-616.0,0.00021895,2]
[329165512,1718145048609,-203.72089019,0.00021907,2]
[329165514,1718145048619,-349.82439003,0.00021917,2]
[329165516,1718145048632,-500.0,0.00021917,2]
[329165518,1718145048642,-203.28277978,0.00021917,2]
[329165720,1718145052458,-1830.0,0.00021861,2]
[329165721,1718145052468,-1269.0,0.00021861,2]
[329165722,1718145052478,-296.71722022,0.00021917,2]
[329165723,1718145052493,-500.0,0.00021917,2]
[329165724,1718145052503,-317.75468906,0.00021917,2]
[329165725,1718145053339,-182.24531094,0.00021917,2]
[329165726,1718145053351,-500.0,0.00021917,2]
[329165727,1718145053362,-368.00152224,0.00021917,2]
[329165728,1718145053597,-131.99847776,0.00021917,2]
[329165729,1718145053607,-500.0,0.00021917,2]
[329165730,1718145053617,-500.0,0.00021917,2]
[329165731,1718145053627,-815.41,0.00021917,2]
[329165732,1718145053637,-41.71813367,0.00021917,2]
[329165733,1718145053649,-278.88464835,0.00021917,2]
[329165734,1718145053667,-382.27218648,0.00021917,2]
[329165752,1718146233254,-674.97726,0.00010276,2]
[329165753,1718146233267,-272.61289138,0.00010276,2]
[329165754,1718146233280,-4818.84609131,0.00010276,2]
[329165755,1718146233293,-1075.84932894,0.00010276,2]
[329165756,1718146233303,-36.50538949,0.00011786,2]
[329165757,1718146233711,-2688.39276045,0.00011786,2]
[329165758,1718146233722,-774.11628955,0.000118,2]
[329165759,1718146233734,-2071.14609063,0.000118,2]
[329165760,1718146233747,-6853.25855523,0.000118,2]
[329165761,1718146233757,-8987.4532,0.000139,2]
[329165762,1718146233767,-60951.484,0.000139,2]
[329165763,1718146234044,-150.0,0.00013973,2]
[329165764,1718146234055,-152.18,0.0001399,2]
[329165765,1718146234066,-152.18,0.0001399,2]
[329165766,1718146234077,-152.18,0.0001399,2]
[329165767,1718146234088,-152.18,0.0001399,2]
[329165768,1718146234099,-152.18,0.0001399,2]
[329165769,1718146234109,-152.18,0.0001399,2]
[329165770,1718146234120,-160995.83685963,0.00014,2]
[329165771,1718146234134,-713.45,0.00014,2]
[329165772,1718146234146,-2643.95885393,0.00014,2]
[329165773,1718146234159,-19786.50057852,0.00014,2]
[329165774,1718146234172,-1341.7611196,0.00014,2]
[329165775,1718146234185,-281.19172138,0.00014,2]
[329165783,1718146239378,-401.75055454,0.00014,2]
[329165784,1718146239392,-790.78038868,0.00014,2]
[329165785,1718146239410,-1729.55783652,0.00014,2]
[329165786,1718146239427,-671.65301558,0.00014,2]
[329165787,1718146239452,-3163.29177813,0.00014,2]
[329165788,1718146239471,-729.17517403,0.00014,2]
[329165789,1718146239487,-529.82133345,0.00014,2]
[329165790,1718146239515,-807.04598073,0.00014,2]
[329165791,1718146239533,-1151.7587563,0.00014,2]
[329165792,1718146239549,-1132.68538944,0.00014,2]
[329165793,1718146239581,-157460.25929017,0.00014,2]
[329165794,1718146239601,-444.11719502,0.00014,2]
[329165795,1718146239615,-6896.54327828,0.00014,2]
[329165796,1718146239628,-1517.50982453,0.00014,2]
[329165797,1718146239913,-6927.86209174,0.00014,2]
[329165798,1718146239929,-1999.05404821,0.00014,2]
[329165799,1718146239942,-775.44461026,0.00014,2]
[329165800,1718146239961,-41560.34677463,0.00014,2]
[329165801,1718146239982,-24668.00020039,0.00014,2]
[329165802,1718146240001,-350.1,0.00014,2]
[329165803,1718146240014,-1391.18950319,0.00014,2]
[329165804,1718146240032,-1264.42055349,0.00014,2]
[329165805,1718146240053,-16169.82675154,0.00014,2]
[329165806,1718146240066,-4810.4278016,0.00014,2]
[329165807,1718146240084,-7087.31371134,0.00014,2]
[329165808,1718146240110,-7154.86799684,0.00014,2]
[329165809,1718146240124,-9901.01985224,0.00014,2]
[329165810,1718146240137,-5085.22599903,0.00014,2]
[329165811,1718146240150,-5316.55835596,0.00014,2]
[329165812,1718146240164,-4827.4486701,0.00014,2]
[329165813,1718146240177,-4563.16507407,0.00014,2]
[329165814,1718146240190,-3726.19972867,0.00014,2]
[329165815,1718146240204,-774.91831638,0.00014,2]
[329165816,1718146240216,-479.23585153,0.00014,2]
[329165817,1718146240231,-500.0,0.00014,2]
[329165983,1718146242278,-274.04051347,0.00014,2]
[329165986,1718146242294,-823.32509816,0.00014,2]
[329166467,1718146247517,-7350.49439153,0.00014,2]
[329167010,1718146385267,2617.4339,0.00010176,2]
[329167011,1718147227209,-886.26256298,0.00013716,2]
[329167012,1718147227236,-155.0,0.00013717,2]
[329167013,1718147227265,-155.0,0.00013718,2]
[329167014,1718147227291,-382.72650143,0.00013719,2]
[329167015,1718147227319,-3163.01523537,0.000139,2]
[329167016,1718147227347,-163.8151,0.000139,2]
[329167017,1718147227375,-2614.73118659,0.000139,2]
[329167018,1718147242394,-989.72791341,0.000139,2]
[329167019,1718147242420,-223.74272516,0.000139,2]
[329167020,1718147242447,-215.64274998,0.000139,2]
[329167021,1718147242473,-448.31722883,0.00013998,2]
[329167022,1718147242499,-241.67696198,0.00013998,2]
[329167023,1718147242522,-1104.35699393,0.00013998,2]
[329167026,1718147432572,-391.85679535,0.00013857,2]
[329167028,1718147432585,-3900.71486584,0.00013857,2]
[329167030,1718147432596,-2000.0,0.00013858,2]
[329167032,1718147432606,-2121.93818,0.0001386,2]
[329167035,1718147432621,-332.76008841,0.00013985,2]
[329167036,1718147432635,-152.24,0.0001399,2]
[329167037,1718147432648,-152.24,0.0001399,2]
[329167038,1718147432659,-152.24,0.0001399,2]
[329167039,1718147432676,-1090.6619979,0.00013998,2]
[329167040,1718147432698,-2138.57685314,0.00013998,2]
[329167041,1718147432713,-307.93060477,0.00013998,2]
[329167042,1718147432725,-887.77651628,0.00013998,2]
[329167043,1718147432741,-542.2859949,0.00013999,2]
[329167044,1718147432761,-595564.54075587,0.00014,2]
[329167045,1718147432964,-12616.0,0.00014,2]
[329167067,1718147441283,-17669.62034293,0.00014,2]
[329167068,1718147442000,-1864.35433037,0.00014,2]
[329167069,1718147442012,-3525.88048136,0.00014,2]
[329167070,1718147442030,-504.08999982,0.00014,2]
[329167143,1718147443333,-157460.25929017,0.00014,2]
[329167144,1718147443696,-4468.99979135,0.00014,2]
[329167248,1718147445580,-10894.0794696,0.00014,2]
[329167402,1718147447429,-4200.6,0.00014,2]
[329167442,1718147447871,-47779.01007416,0.00014,2]
[329167444,1718147447887,-5795.78313179,0.00014,2]
[329167446,1718147447900,-483.52265467,0.00014,2]
[329168444,1718148461130,-625.97046574,0.00011586,2]
[329168445,1718148461153,-407.68898763,0.00011587,2]
[329168446,1718148461176,-934.30202894,0.00011587,2]
[329168447,1718148461201,-621.21,0.00011589,2]
[329168448,1718148461224,-437.21892219,0.000124,2]
[329168457,1718148633509,-155.0,0.00012397,2]
[329168458,1718148633533,-194.66,0.00012398,2]
[329168459,1718148633565,-254.35915721,0.00012398,2]
[329168460,1718148633575,-300.0,0.00012399,2]
[329168461,1718148633588,-751.88084279,0.000124,2]
[329168483,1718148639482,-1819.07780296,0.000124,2]
[329168484,1718148639567,-7971.1004852,0.000124,2]
[329168485,1718148639620,-250.0,0.00012926,2]
[329168486,1718148639641,-484.61,0.0001294,2]
[329168487,1718148639653,-975.59,0.00013113,2]
[329168488,1718148639668,-1101.71,0.00013188,2]
[329168489,1718148639705,-156.39,0.00013285,2]
[329168490,1718148639723,-1000.0,0.00013385,2]
[329168491,1718148639742,-156.39,0.00013458,2]
[329168492,1718148639761,-420.0,0.00013606,2]
[329168493,1718148639774,-2045.62,0.00013615,2]
[329168494,1718148639798,-156.39,0.00013631,2]
[329168495,1718148639825,-200.0,0.00013699,2]
[329168496,1718148639837,-589.9213,0.00013753,2]
[329168497,1718148639872,-720.72125534,0.000138,2]
[329168498,1718148639884,-1207.39,0.00013801,2]
[329168499,1718148639906,-156.39,0.00013804,2]
[329168500,1718148639918,-621.21,0.00013853,2]
[329168501,1718148639948,-448.51721274,0.000139,2]
[329168502,1718148639997,-687.1821,0.000139,2]
[329168503,1718148640008,-187.61078124,0.000139,2]
[329168504,1718148640019,-321.03537461,0.000139,2]
[329168505,1718148640033,-156.39,0.00013977,2]
[329168506,1718148640058,-2317.53693812,0.00013985,2]
[329168507,1718148640074,-2227.75244418,0.00013998,2]
[329168508,1718148640109,-785.15097795,0.00013998,2]
[329168509,1718148640128,-2822.20152753,0.00013998,2]
[329168510,1718148640175,-1493.36436777,0.00013998,2]
[329168511,1718148640194,-217.40040456,0.00013998,2]
[329168512,1718148640224,-161.27128855,0.00013998,2]
[329168513,1718148640236,-329.44740147,0.00013998,2]
[329168514,1718148640249,-166.43094977,0.00013998,2]
[329168515,1718148640282,-1052.98663514,0.00013998,2]
[329168516,1718148640295,-3099.35721507,0.00013998,2]
[329168517,1718148640312,-267.42084264,0.00013998,2]
[329168518,1718148640337,-531.15011943,0.00013998,2]
[329168519,1718148640349,-403.27366081,0.00013998,2]
[329168520,1718148640362,-625.96160997,0.00013998,2]
[329168521,1718148640378,-200.25128794,0.00013998,2]
[329168522,1718148640397,-1257.95269148,0.00013998,2]
[329168523,1718148640421,-1579.48931695,0.00013999,2]
[329168524,1718148640434,-160.35393336,0.00013999,2]
[329168525,1718148640452,-117747.33716835,0.00014,2]
[329168527,1718148641235,-701.89106013,0.00014,2]
[329168529,1718148641250,-1001.00661564,0.00014,2]
[329168565,1718148641945,-22256.41329664,0.00014,2]
[329168582,1718148642328,-586.80049511,0.00014,2]
[329168585,1718148642342,-409.45999997,0.00014,2]
[329168587,1718148642361,-6212.55820317,0.00014,2]
[329168589,1718148642375,-775.77409809,0.00014,2]
[329168591,1718148642394,-10454.55,0.00014,2]
[329168593,1718148642421,-4608.4,0.00014,2]
[329168609,1718148642753,-7849.97467302,0.00014,2]
[329168612,1718148642772,-1022.04087,0.00014,2]
[329168614,1718148642786,-3107.12544579,0.00014,2]
[329168626,1718148642983,-536.63605932,0.00014,2]
[329168642,1718148643259,-500.09,0.00014,2]
[329168644,1718148643273,-1013.22885838,0.00014,2]
[329168704,1718148644295,-8006.82744837,0.00014,2]
[329168767,1718148645296,-6687.536406,0.00014,2]
[329168768,1718148645312,-748.12442162,0.00014,2]
[329168769,1718148645333,-892.99999995,0.00014,2]
[329168770,1718148645346,-1745.58285209,0.00014,2]
[329169338,1718148652230,-215.3339305,0.00013999,2]
[329169340,1718148652241,-835.30606952,0.00014,2]
[329169377,1718148652622,-31917.53181174,0.00014,2]
[329169379,1718148652635,-5018.53305676,0.00014,2]
[329169381,1718148652646,-171127.06352797,0.00014,2]
[329169417,1718148653018,-270.462826,0.00014,2]
[329169419,1718148653030,-1597.9835148,0.00014,2]
[329169422,1718148653042,-2085.163727,0.00014,2]
[329169424,1718148653054,-12144.99381945,0.00014,2]
[329169427,1718148653080,-874.92259777,0.00014,2]
[329169559,1718149109569,-162.67638864,0.00012944,2]
[329169560,1718149109592,-2369.42831983,0.00012944,2]
[329169561,1718149109618,-2823.25950554,0.00012944,2]
[329169562,1718149109643,-625.97046574,0.00012945,2]
[329169563,1718149109697,-1000.0,0.00012946,2]
[329169564,1718149109734,-283.00457355,0.00012992,2]
[329169565,1718149109786,-195.82725417,0.00012992,2]
[329169566,1718149109814,-10979.27805314,0.00012992,2]
[329169567,1718149109844,-975.59,0.00012993,2]
[329169568,1718149109870,-300.0,0.00013104,2]